Cogmind - Beta 13 @@@ ROGUE MODE // 2024.06.13 @ 06:13:58 Player: Some Pennies Result: Destroyed by 0W-V53(R) with Subdweller Laser Performance ------------- Evolutions (0) 0 Regions Visited (2) 400 Robots Destroyed (23) 115 Value Destroyed (423) 423 Prototype IDs (2) 40 Alien Tech Used (0) 0 Bonus (0) 0 TOTAL SCORE: 978 Bonus ------- None Cogmind --------- Core Integrity 0/250 Matter 127/300 Energy 250/250 System Corruption 0% Temperature Cool (6) Movement Treading (160) Location -10/Subcaves Parts ------- > --- POWER (1) -------- Ion Engine > --- PROPULSION (2) --- Light Treads Light Treads > --- UTILITY (2) ------ Medium Storage Unit Seismic Detector > --- WEAPON (2) ------- Battle Cannon Mining Laser > --- INVENTORY (10) --- Subdweller Power Source Subdweller Monowheel Improved Terrain Scanner Seismic Detector Makeshift Laser Light Cannon Light Cannon Grenade Launcher Grenade Launcher Grenade Launcher Peak State ------------ > --- POWER ------------ Ion Engine > --- PROPULSION ------- Light Treads Light Treads > --- UTILITY ---------- Medium Storage Unit Seismic Detector > --- WEAPON ----------- Battle Cannon Mining Laser > --- INVENTORY -------- Subdweller Power Source Subdweller Monowheel Improved Terrain Scanner Seismic Detector Makeshift Laser Light Assault Rifle Light Cannon Grenade Launcher Grenade Launcher Grenade Launcher [Rating: 9] Favorites ----------- Power Ion Engine Engine Ion Engine Propulsion Light Treads Treads Light Treads Wheel Compact Wheel Utility Seismic Detector Device Seismic Detector Storage Medium Storage Unit Weapon Light Cannon Energy Gun Medium Laser Ballistic Gun Light Assault Rifle Ballistic Cannon Light Cannon Launcher Grenade Launcher Special Weapon Mining Laser Build | -11 -10 -10 ------- Run | Yrd Mat Sub Slots Evolved . | . . . Power . | . . . Propulsion . | . . . Utility . | . . . Weapon . | . . . Parts Attached 21 | 7 7 7 Power 2 | 1 1 . Engine 2 | 1 1 . Core . | . . . Reactor . | . . . Propulsion 3 | 2 1 . Treads 2 | 1 1 . Leg . | . . . Wheel 1 | 1 . . Hover . | . . . Flight . | . . . Utility 4 | 2 2 . Device 2 | 1 1 . Storage 2 | 1 1 . Processor . | . . . Hackware . | . . . Protection . | . . . Artifact . | . . . Weapon 12 | 2 3 7 Energy Gun 1 | 1 . . Energy Cannon . | . . . Ballistic Gun 2 | 1 . 1 Ballistic Cannon 5 | . 3 2 Launcher 2 | . . 2 Special Weapon 2 | . . 2 Impact Weapon . | . . . Slashing Weapon . | . . . Piercing Weapon . | . . . Special Melee Weapon . | . . . Unidentified Prototypes . | . . . Parts Lost 1 | . 1 . Power . | . . . Propulsion . | . . . Utility . | . . . Weapon 1 | . 1 . Highest Loss Streak 1 | . 1 . To Critical Strikes . | . . . Average Slot Usage (%) 99 | . 99 100 Engine 14 | . 14 14 Treads 27 | . 27 28 Device 14 | . 14 14 Storage 14 | . 14 14 Ballistic Gun 2 | . 2 2 Ballistic Cannon 16 | . 23 13 Launcher 1 | . . 1 Special Weapon 6 | . . 10 Naked Turns . | . . . Heaviest Build 22 | 15 22 22 Greatest Support 40 | 16 40 40 Greatest Overweight (x) 1 | 1 . . Average Overweight (x) . | . . . Largest Inventory Capacity 10 | 8 10 10 Average Capacity 9 | 7 8 10 Most Carried 10 | 6 10 10 Average Carried 9 | 3 8 9 Final Capacity 10 | 8 10 10 Final Carried 10 | 5 10 10 Class Distribution -------------------- 100% | Mutant Dominant Class ---------------- Mutant | -10/Materials Mutant | -10/Subcaves Resources | -11 -10 -10 ----------- Run | Yrd Mat Sub Matter Collected 764 | 287 335 142 Remotely . | . . . Salvage Created 598 | 141 322 135 Parts 37 | 5 25 7 Haulers Intercepted 1 | . 1 . Recyclers Shooed 1 | . 1 . Parts Field Recycled . | . . . Retrieved Matter . | . . . Parts Self-Destructed . | . . . Prevented . | . . . Kills | -11 -10 -10 ------- Run | Yrd Mat Sub Combat Hostiles Destroyed 15 | . 13 2 Guns 5 | . 5 . Cannons 7 | . 7 . AOE 3 | . 1 2 Classes Destroyed 8 | 2 6 . Worker 2 | . 2 . Tunneler 2 | 2 . . Hauler 1 | . 1 . Recycler 2 | 1 1 . Watcher 1 | . 1 . Swarmer 9 | . 9 . Grunt 1 | . 1 . Subdweller 5 | . 3 2 Best Kill Streak 7 | 3 7 2 Combat Bots Only 3 | . 3 2 Max Kills in Single Turn 2 | 1 2 2 Gunslinging . | . . . Exploded 2 | . 1 2 Melee . | . . . Uniques/NPCs Destroyed . | . . . Combat | -11 -10 -10 -------- Run | Yrd Mat Sub Hostile Shots Fired 75 | . 67 8 Missed 20 | . 17 3 Damage Taken 1064 | . 946 118 Core 267 | . 227 40 Absorbed by Shields . | . . . Core Remaining (%) 100 | 100 . . Volleys Fired 139 | 10 58 71 Largest 2 | 2 2 2 Hottest 100 | 70 70 100 Shots Fired 210 | 20 115 75 Gun 94 | 20 32 42 Cannon 83 | . 83 . Launcher 8 | . . 8 Special 25 | . . 25 Kinetic 151 | 10 99 42 Thermal 51 | 10 16 25 Explosive 8 | . . 8 Electromagnetic . | . . . Robot Hit Streak 36 | 5 17 36 Robot Miss Streak 4 | 2 4 1 Penetration Max . | . . . Secondary Targets . | . . . Shots Hit Robots 127 | 11 72 44 Core Hits 42 | 4 22 16 Critical Kills . | . . . Critical Parts Destroyed 1 | . . 1 Critical Strikes 4 | 1 2 1 Burn 1 | 1 . . Destroy 1 | . . 1 Blast 2 | . 2 . Melee Attacks . | . . . Impact . | . . . Slashing . | . . . Piercing . | . . . Sneak Attacks . | . . . Combat Hostiles . | . . . Follow-up Attacks . | . . . Damage Inflicted 2205 | 140 1290 775 Guns 708 | 140 225 343 Cannons 968 | . 968 . Explosions 505 | . 97 408 Melee . | . . . Ramming . | . . . Kinetic 1465 | 54 1068 343 Thermal 332 | 86 222 24 Explosive 408 | . . 408 Electromagnetic . | . . . Impact . | . . . Slashing . | . . . Piercing . | . . . Highest Corruption . | . . . Average Corruption . | . . . Corruption Purged . | . . . Corruption Blocked . | . . . Overload Shots . | . . . Overflow Damage 87 | . 87 . Projectiles 10 | . 10 . Explosions 77 | . 77 . Melee . | . . . Knockbacks 10 | . 10 . Impact . | . . . Kinetic 10 | . 10 . Secondary . | . . . Self-Inflicted Damage 240 | . 236 4 Shots 4 | . 3 1 Rammed . | . . . Targets Rammed . | . . . Kicked . | . . . Crushed . | . . . Highest Temperature 241 | 36 241 . Average Temperature 51 | 16 57 . Received Heat Transfer 201 | . 168 33 Siege Activations . | . . . Robots Corrupted . | . . . Combat Hostiles . | . . . Parts Fried . | . . . Impact Corruptions . | . . . Robots Melted . | . . . Combat Hostiles . | . . . Parts Melted . | . . . Heat Transferred 803 | 333 420 50 Parts Sabotaged . | . . . Parts Stolen . | . . . Parts Stripped . | . . . Power Chain Reactions . | . . . Alert | -11 -10 -10 ------- Run | Yrd Mat Sub Peak Influence 338 | 15 338 . Initial 9 | . 9 . Average 145 | 3 159 . Maximum Alert Level 1 | . 1 . Low Security (%) 70 | 100 67 . Level 1 29 | . 32 . Level 2 . | . . . Level 3 . | . . . Level 4 . | . . . Level 5 . | . . . High Security . | . . . Max Security . | . . . Squads Dispatched 1 | . 1 . Investigation 1 | . 1 . Extermination . | . . . Reinforcement . | . . . Assault . | . . . Garrison . | . . . Intercept . | . . . Searches Triggered . | . . . Construction Impeded . | . . . Haulers Reinforced . | . . . Active Scanning Responses . | . . . Cargo Convoy Interrupts . | . . . Stealth | -11 -10 -10 --------- Run | Yrd Mat Sub Distress Signals . | . . . Communications Jammed . | . . . Distress Signals . | . . . Times Spotted 20 | . 17 3 Peak Tracking Total 3 | . 3 2 Tactical Retreats 2 | . 2 . Traps | -11 -10 -10 ------- Run | Yrd Mat Sub Traps Triggered . | . . . Indirectly . | . . . Trap Hack Attempts . | . . . Triggered . | . . . Disarmed . | . . . Reprogrammed . | . . . Reused . | . . . Traps Extracted . | . . . Installed . | . . . Triggered . | . . . Machines | -11 -10 -10 ---------- Run | Yrd Mat Sub Machines Disabled 4 | . 4 . Max in Single Turn 4 | . 4 . Machines Repaired . | . . . Machines Dismantled . | . . . Machines Sabotaged . | . . . Overloaded Fab Kills . | . . . Hacking | -11 -10 -10 --------- Run | Yrd Mat Sub Machines Accessed 5 | . 5 . Terminals 3 | . 3 . Fabricators . | . . . Repair Stations . | . . . Recycling Units 2 | . 2 . Scanalyzers . | . . . Garrison Access . | . . . Total Hacks 11 | . 11 . Successful 7 | . 7 . Failed 4 | . 4 . Catastrophic . | . . . Database Lockouts . | . . . Manual 1 | . 1 . Terminals 8 | . 8 . Fabricators . | . . . Repair Stations . | . . . Recycling Units 3 | . 3 . Scanalyzers . | . . . Garrison Access . | . . . Terminal Hacks 4 | . 4 . Prototype ID Bank 1 | . 1 . Locate Traps 1 | . 1 . Transport Status 1 | . 1 . Hauler Manifests 1 | . 1 . Fabricator Hacks . | . . . Repair Station Hacks . | . . . Recycling Unit Hacks 2 | . 2 . Retrieve Components 2 | . 2 . Scanalyzer . | . . . Garrison Access Hacks . | . . . Unauthorized Hacks 1 | . 1 . Terminals . | . . . Fabricators . | . . . Repair Stations . | . . . Recycling Units 1 | . 1 . Tunnel 1 | . 1 . Scanalyzers . | . . . Garrison Access . | . . . Data Cores Recovered . | . . . Used . | . . . Hacking Detections 2 | . 2 . Full Trace Events 1 | . 1 . Feedback Events . | . . . Feedback Blocked . | . . . Robot Schematics Acquired . | . . . Robots Built . | . . . Authchips . | . . . Time . | . . . Total Robot Build Rating . | . . . Part Schematics Acquired . | . . . Parts Built . | . . . Authchips . | . . . Time . | . . . Total Part Build Rating . | . . . Parts Repaired . | . . . Time . | . . . Parts Recycled . | . . . Recycled Matter . | . . . Retrieved Matter . | . . . Retrieved Components 10 | . 10 . Parts Scanalyzed . | . . . Part Schematics Acquired . | . . . Parts Damaged . | . . . Bothacking | -11 -10 -10 ------------ Run | Yrd Mat Sub Used RIF Installer . | . . . Robots Hacked . | . . . Non-combat . | . . . Combat . | . . . Robot Hacks Applied . | . . . Relay Couplers Released . | . . . Fabnet Peak Effective % . | . . . Robots Rewired . | . . . Allies Hacked . | . . . Hacks Repelled . | . . . Allies | -11 -10 -10 -------- Run | Yrd Mat Sub Total Allies . | . . . Largest Group . | . . . Highest-Rated Group . | . . . Highest-Rated Ally . | . . . Total Orders . | . . . Ally Attacks . | . . . Total Damage . | . . . Kills . | . . . Allies Corrupted . | . . . Allies Melted . | . . . Intel | -11 -10 -10 ------- Run | Yrd Mat Sub Robot Analysis Total . | . . . Derelict Logs Recovered 1 | . . 1 Drone Launches . | . . . Drone Recoveries . | . . . Exploration | -11 -10 -10 ------------- Run | Yrd Mat Sub Turns Passed 2783 | 94 986 1703 Spaces Moved 1485 | 50 500 935 Core 12 | 12 . . Treads 1387 | . 452 935 Legs . | . . . Wheels 86 | 38 48 . Hover . | . . . Flight . | . . . Fastest Speed 50 | 50 100 160 Average Speed 155 | 91 154 160 Slowest Speed 160 | 100 160 160 Overloaded Moves . | . . . Propulsion Burnouts . | . . . Robots Hopped . | . . . Cave-ins Triggered . | . . . Exploration Rate (%) 33 | 4 68 28 Regions Visited 2 Branch Regions 1 Pre-discovered Areas 3 | . 1 2 Known Exits Taken . | . . . Unknown Exits Taken 2 | 1 1 . Scrap Searched . | . . . Spaces Dug . | . . . Terrain Destroyed 43 | . 30 13 Melee . | . . . Projectile . | . . . AOE 43 | . 30 13 Terrain Rammed . | . . . Walls Destroyed . | . . . Machines Disabled . | . . . Actions | -11 -10 -10 --------- Run | Yrd Mat Sub Total 1705 | 78 603 1024 Wait 19 | . 13 6 Move 1483 | 49 499 935 Hop . | . . . Pick Up 29 | 12 15 2 Fast Attach . | . . . Attach 8 | 7 1 . Detach . | . . . Swap 13 | . 6 7 Drop 14 | . 11 3 Fire 139 | 10 58 71 Melee . | . . . Ram . | . . . Kick . | . . . Crush . | . . . Escape Stasis . | . . . Rewire . | . . . Trap . | . . . Miscellaneous . | . . . Route ------- -11/Scrapyard -10/Materials (discovered 4 exits: [*Mat x2] / [*Min] / [*Sub]) -10/Subcaves History --------- Turn | Location | Event 4 | -11/Scrapyard | Discovered new exit (range 15) 95 | -11/Scrapyard | Entered Materials 227 | -10/Materials | Core integrity fell below 50% 305 | -10/Materials | Build established: Mutant 431 | -10/Materials | Discovered new exit (range 16) 533 | -10/Materials | Discovered new exit (range 15) 890 | -10/Materials | Discovered new exit (range 4) 895 | -10/Materials | Derelicts attacked the area 996 | -10/Materials | Core integrity fell below 20% 1074 | -10/Materials | Discovered new exit (range 5) 1081 | -10/Materials | Entered Subcaves 1152 | -10/Subcaves | Learned location of Zion (-6) 1152 | -10/Subcaves | Met a Zionite searching for "candidates" 1469 | -10/Subcaves | A swath of the cavern ceiling suddenly collapsed 2784 | -10/Subcaves | Destroyed by 0W-V53(R) with Subdweller Laser Last Messages --------------- 02344_ Subatomizers dissect the Sub. Power Source. 02349_ N4-X0M(R) suffers critical hit (Destroy). 02349_ Destroyed Sub. Power Source. 02356_ Subatomizers dissect the Sub. Power Source. 02371_ N4-X0M(R) destroyed. 02374_ Acquired 59 matter. 02377_ Acquired 26 matter. 02383_ Subatomizers dissect the Sub. Monowheel. 02398_ Acquired 36 matter. 02404_ Subatomizers dissect the Sub. Monowheel. 02623_ Dropped Ion Engine. 02624_ Acquired Mak. Laser. 02665_ Dropped Lgt. Cannon. 02668_ Dropped Lgt. Assault Rifle. 02670_ Acquired Lgt. Cannon. 02681_ Subatomizers dissect the Lgt. Assault Rifle. Map ----- +----------------------------------------------------+ | | | | | | | | | | | | | | | | | ?????????????????????????????????????????????????? | | ?????????????????????????????????????????????????? | | ?????????????????????????????????????????????????? | | ?????????????????????????????????????????????????? | | ?????????????????????????????????????????????????? | | ?????????????????????????????????????????????????? | | ?????????????????????????????????????????????????? | | ?????????????????????????????????????????????????? | | ?????????????????????????????????????????????????? | | ?????????????????????????????????????????????????? | | ?????????????????????????????????????????????????? | | ?????????????????????????????????????????????????? | | ?????????????????????????????????????????????????? | | ?????????????????????????????????????????????????? | | ?????????????????????????????????????????????????? | | ?????????????????????????###?????????????????###?# | | ????????????????????????## ##?###########???## ### | | ?????????????????####??##@ ### ## ## ###?# | | ???????????# " "# ### ## # *##?# | | ?????????? "" R #"##" ### | | ???????? " ## ##""# ## | | ???????? # ### ### ######"######## | | ????????????????######## ##???##???????## | | ???????????????????????# #????????????# # | | ???????????????????????# ##????????????# ### # | | ???????????????????????## ; #??##???????## #?## # | | ????????????????????????## ##??? ??????#"" #?# | | ???????????????????????## ######? ??????####### # | | ???????????????????????#"""""#"#? ???????# # | | ???????????????????????# ""##""#?? #??????# [ | | ???????????????????????##"##"""#??# ??????#### # | | ????????????????????????####"###??# ????????##### | | ??????????????????????????#"#"##??# ????????????? | | ??????????????????????????#""#############???????? | | ??????????????????????????# "## #""""## #???????? | | ??????????????????????##### # #"" ###?????? | | ???????????????????#### " ##????? | | ???????????????????# #????? | | ???????????????????# ### #????? | | ???????????????????# #### ####?? | | ???????????????????## ##### ## #?? | | ????????????????????###### ## ### | +----------------------------------------------------+ Best States ------------- Heat Dissipation 25 Energy Generation 10 Energy Capacity 250 Matter Stores 300 Matter Capacity 300 Sight Range 16 Terrain Scan Density 10 Evasion (%) 50 Recoil Reduction 2 Item Schematics ----------------- None Robot Schematics ------------------ None Fabricated ------------ Nothing Alien Tech Used ----------------- None Achievements -------------- None Challenges ------------ None Game ------ Seed CorruptionGravitonWings Manual? 0 Play Time 00:18:38 Cumulative 153.1 hours Start 2024.06.13 @ 05:47:42 End 2024.06.13 @ 06:13:58 Sessions 1 Manual Loads 0 Difficulty Rogue Special Mode None Game No. 130 Rogue 125 Adventurer 5 Explorer 0 Win Type - Total 3 Types 2/0/1/0/0/0/0/0/0 Lore% 63 Gallery% 75 Achievement% 53 Wizard Run 0 Options --------- Layout 2 ASCII 0 Keyboard 0 Movement Mouse Keybinds 0 Fullscreen 2 Font 24/Smallcaps Map View 50x44 Zoom Use 0% Tactical HUD 1 Map Filters NONE Filters NONE Steam 1 RUN: 668d0643-03c4-4059-aca8-8fc6cc76b515